fUSD/lending_fUSD_20241116
["ID","MTS","AMOUNT","RATE_DAILY","PERIOD"]
[342335122,1731744640569,-500.0,9.958e-05,2]
[342335123,1731744640579,-500.0,9.958e-05,2]
[342335124,1731744640588,-500.0,9.958e-05,2]
[342335125,1731744640598,-500.0,9.958e-05,2]
[342335126,1731744640608,-500.0,9.958e-05,2]
[342335127,1731744640617,-500.0,9.958e-05,2]
[342335128,1731744640626,-500.0,9.958e-05,2]
[342335129,1731744640636,-500.0,9.958e-05,2]
[342335130,1731744640645,-500.0,9.958e-05,2]
[342335131,1731744640655,-562.04803751,9.958e-05,2]
[342335132,1731744640664,-500.0,9.958e-05,2]
[342335133,1731744640673,-500.0,9.958e-05,2]
[342335134,1731744640683,-618.44194366,9.958e-05,2]
[342335135,1731744640696,-500.0,9.958e-05,2]
[342335136,1731744640706,-500.0,9.958e-05,2]
[342335137,1731744640715,-500.0,9.958e-05,2]
[342335138,1731744640725,-431.20609157,9.958e-05,2]
[342335139,1731744640735,-500.0,9.958e-05,2]
[342335140,1731744640744,-500.0,9.958e-05,2]
[342335141,1731744640753,-500.92141632,9.958e-05,2]
[342335142,1731744640763,-500.0,9.958e-05,2]
[342335143,1731744640772,-500.0,9.958e-05,2]
[342335144,1731744640783,-500.0,9.958e-05,2]
[342335145,1731744640795,-500.0,9.958e-05,2]
[342335146,1731744640804,-500.0,9.958e-05,2]
[342335147,1731744640814,-615.68,9.958e-05,2]
[342335148,1731744640823,-1000.0,9.958e-05,2]
[342335149,1731744640834,-500.0,9.958e-05,2]
[342335150,1731744640843,-586.82991577,9.958e-05,2]
[342335151,1731744640852,-500.0,9.958e-05,2]
[342335152,1731744640864,-500.0,9.958e-05,2]
[342335153,1731744640874,-346.40844402,9.958e-05,2]
[342335154,1731744640884,-500.91984872,9.958e-05,2]
[342335155,1731744640893,-500.0,9.958e-05,2]
[342335156,1731744640903,-500.802852,9.958e-05,2]
[342335157,1731744640912,-501.29986986,9.958e-05,2]
[342335158,1731744640922,-500.0,9.958e-05,2]
[342335159,1731744640931,-500.45280015,9.958e-05,2]
[342335160,1731744640943,-500.0,9.958e-05,2]
[342335161,1731744640951,-500.0,9.958e-05,2]
[342335162,1731744640961,-500.62592277,9.958e-05,2]
[342335163,1731744640970,-500.0,9.958e-05,2]
[342335164,1731744640979,-413.05830578,9.958e-05,2]
[342335165,1731744640988,-542.03,9.958e-05,2]
[342335166,1731744640997,-239.69719321,9.958e-05,2]
[342335167,1731744641006,-165.82128235,9.958e-05,2]
[342335168,1731744641016,-597.74,9.958e-05,2]
[342335169,1731744641026,-364.78017769,9.958e-05,2]
[342335170,1731744641035,-500.0,9.958e-05,2]
[342335171,1731744641045,-500.0,9.958e-05,2]
[342335172,1731744641055,-500.0,9.958e-05,2]
[342335173,1731744641065,-500.0,9.958e-05,2]
[342335174,1731744641075,-500.0,9.958e-05,2]
[342335175,1731744641084,-500.0,9.958e-05,2]
[342335176,1731744641094,-599.63362447,9.958e-05,2]
[342335177,1731744641103,-519.79583689,9.958e-05,2]
[342335178,1731744641112,-500.0,9.958e-05,2]
[342335179,1731744641122,-500.0,9.958e-05,2]
[342335180,1731744641132,-500.0,9.958e-05,2]
[342335181,1731744641141,-500.0,9.958e-05,2]
[342335182,1731744641151,-500.73132347,9.958e-05,2]
[342335183,1731744641160,-500.0,9.958e-05,2]
[342335184,1731744641169,-524.36394557,9.958e-05,2]
[342335185,1731744641179,-507.10105839,9.958e-05,2]
[342335186,1731744641188,-582.22660769,9.958e-05,2]
[342335187,1731744641200,-500.0,9.958e-05,2]
[342335188,1731744641209,-500.0,9.958e-05,2]
[342335189,1731744641219,-500.0,9.958e-05,2]
[342335190,1731744641229,-98018.41804803,9.959e-05,2]
[342335191,1731744641239,-3690.1700168,9.959e-05,2]
[342335192,1731744641248,-8638.97740233,9.959e-05,2]
[342335193,1731744641268,-13253.22423378,9.959e-05,2]
[342335194,1731744641330,-421.1760371,9.959e-05,2]
[342335195,1731744641381,-2818.57812222,9.959e-05,2]
[342335196,1731744641393,-1113.00679852,9.959e-05,2]
[342335197,1731744641404,-788.30346052,9.959e-05,2]
[342335198,1731744641427,-501.90378907,9.959e-05,2]
[342335200,1731744643329,-513.57258,9.671e-05,2]
[342335201,1731744643385,-187.64342,9.671e-05,2]
[342335202,1731744643395,-2835.63033111,9.959e-05,2]
[342335203,1731744643492,-993.56644484,9.959e-05,2]
[342335204,1731744643504,-62688.5,9.959e-05,2]
[342335205,1731744643546,-4527.76548946,9.959e-05,2]
[342335206,1731744643652,-11049.39117701,9.959e-05,2]
[342335211,1731744646223,-13562.35653638,9.959e-05,2]
[342335212,1731744646489,-7204.97082199,9.959e-05,2]
[342335213,1731744646501,-4478.1674008,9.959e-05,2]
[342335220,1731744787234,151.027,0.0002385,60]
[342335221,1731744787770,151.003,0.0002438,60]
[342335222,1731744802672,2000.0,0.00024898,120]
[342335225,1731744886561,1116.44,8.219e-05,2]
[342335233,1731745130274,339.38121096,0.00025,60]
[342335246,1731745545550,8000.0,0.00025,60]
[342335247,1731745558663,-250.0,8.951e-05,2]
[342335248,1731745558684,-1876.08,8.963e-05,2]
[342335249,1731745558705,-2643.64720788,8.963e-05,2]
[342335250,1731745558727,-346.32788541,8.965e-05,2]
[342335251,1731745558748,-250.0,8.966e-05,2]
[342335252,1731745558769,-164.63,8.966e-05,2]
[342335253,1731745558791,-774.18,8.969e-05,2]
[342335254,1731745558811,-1000.0,8.97e-05,2]
[342335255,1731745558832,-221.44,8.971e-05,2]
[342335256,1731745558853,-1000.0,9.759e-05,2]
[342335257,1731745558874,-300.0,9.799e-05,2]
[342335258,1731745558894,-1881.0,9.8e-05,2]
[342335259,1731745558915,-441.16202439,9.849e-05,2]
[342335260,1731745558936,-150.0,9.857e-05,2]
[342335261,1731745558957,-354.23570087,9.858e-05,2]
[342335262,1731745558980,-503.42920814,9.858e-05,2]
[342335263,1731745559001,-326.19945996,9.858e-05,2]
[342335264,1731745559023,-500.0,9.858e-05,2]
[342335265,1731745559043,-500.0,9.858e-05,2]
[342335266,1731745559064,-500.0,9.858e-05,2]
[342335267,1731745559085,-337.86385601,9.858e-05,2]
[342335268,1731745559109,-438.75,9.858e-05,2]
[342335269,1731745559130,-500.0,9.858e-05,2]
[342335270,1731745559152,-238.33,9.858e-05,2]
[342335271,1731745559175,-500.0,9.858e-05,2]
[342335272,1731745559196,-500.0,9.858e-05,2]
[342335273,1731745559217,-500.0,9.858e-05,2]
[342335274,1731745559239,-520.72,9.858e-05,2]
[342335275,1731745559261,-158.85882084,9.858e-05,2]
[342335276,1731745559282,-500.0,9.858e-05,2]
[342335277,1731745559303,-500.0,9.858e-05,2]
[342335278,1731745559323,-221.9948919,9.858e-05,2]
[342335279,1731745559346,-586.5,9.858e-05,2]
[342335280,1731745559367,-737.52,9.859e-05,2]
[342335281,1731745559389,-9657.4906,9.859e-05,2]
[342335282,1731745559412,-295653.7936,9.859e-05,2]
[342335283,1731745559434,-3653.26831663,9.862e-05,2]
[342335284,1731745559457,-100000.0,9.863e-05,2]
[342335285,1731745559490,-646.11,9.863e-05,2]
[342335286,1731745559513,-5512.16,9.863e-05,2]
[342335287,1731745559536,-150.99,9.863e-05,2]
[342335288,1731745559558,-5131.4,9.863e-05,2]
[342335289,1731745559582,-189834.00459957,9.899e-05,2]
[342335290,1731745559605,-1426.17,9.9e-05,2]
[342335291,1731745559627,-365.28,9.9e-05,2]
[342335292,1731745559650,-651.881,9.952e-05,2]
[342335293,1731745559671,-500.0,9.957e-05,2]
[342335294,1731745559693,-174.19312685,9.958e-05,2]
[342335295,1731745559716,-302.02171,9.958e-05,2]
[342335296,1731745559738,-500.0,9.958e-05,2]
[342335297,1731745559759,-500.0,9.958e-05,2]
[342335298,1731745559781,-500.0,9.958e-05,2]
[342335299,1731745559803,-500.0,9.958e-05,2]
[342335300,1731745559824,-500.0,9.958e-05,2]
[342335301,1731745559846,-500.0,9.958e-05,2]
[342335302,1731745559868,-500.0,9.958e-05,2]
[342335303,1731745559897,-500.0,9.958e-05,2]
[342335304,1731745559920,-500.0,9.958e-05,2]
[342335305,1731745559942,-374.96,9.958e-05,2]
[342335306,1731745559966,-500.0,9.958e-05,2]
[342335307,1731745559987,-98018.41804803,9.959e-05,2]
[342335308,1731745560009,-224.72958163,9.96e-05,2]
[342335309,1731745560032,-965.47963775,9.96e-05,2]
[342335310,1731745560055,-500.0,9.961e-05,2]
[342335311,1731745560077,-6591.88435948,9.962e-05,2]
[342335312,1731745560101,-98018.41804803,9.963e-05,2]
[342335313,1731745560122,-189.41904915,9.965e-05,2]
[342335314,1731745560143,-500.53222031,9.965e-05,2]
[342335315,1731745560165,-500.0,9.965e-05,2]
[342335316,1731745560188,-500.0,9.965e-05,2]
[342335317,1731745560212,-500.0,9.965e-05,2]
[342335318,1731745560235,-500.0,9.965e-05,2]
[342335319,1731745560257,-500.0,9.965e-05,2]
[342335320,1731745560283,-500.0,9.965e-05,2]
[342335321,1731745560305,-1505.0,9.966e-05,2]
[342335322,1731745560327,-500.0,9.966e-05,2]
[342335323,1731745560350,-525.39913248,9.966e-05,2]
[342335324,1731745560372,-500.0,9.966e-05,2]
[342335325,1731745560394,-500.0,9.966e-05,2]
[342335326,1731745560417,-593181.67995443,9.966e-05,2]
[342335327,1731745560440,-593181.67995443,9.966e-05,2]
[342335328,1731745560463,-98018.41804803,9.968e-05,2]
[342335329,1731745560486,-965.47963775,9.97e-05,2]
[342335330,1731745560508,-224.72958163,9.97e-05,2]
[342335331,1731745560530,-500.0,9.97e-05,2]
[342335332,1731745560556,-38440.40401455,9.971e-05,2]
[342335333,1731745560578,-15903.40010857,9.972e-05,2]
[342335334,1731745560602,-38440.40401455,9.974e-05,2]
[342335335,1731745560624,-6591.88435948,9.976e-05,2]
[342335336,1731745560648,-16016.83500606,9.976e-05,2]
[342335337,1731745560670,-38440.40401455,9.98e-05,2]
[342335338,1731745560692,-500.0,9.981e-05,2]
[342335339,1731745560718,-38440.40401455,9.982e-05,2]
[342335340,1731745560741,-98018.41804803,9.982e-05,2]
[342335341,1731745560763,-15903.40010857,9.982e-05,2]
[342335342,1731745560787,-15903.40010857,9.982e-05,2]
[342335343,1731745560810,-500.0,9.982e-05,2]
[342335344,1731745560832,-440.95,9.982e-05,2]
[342335345,1731745560856,-593181.67995443,9.982e-05,2]
[342335346,1731745560878,-224.72958163,9.983e-05,2]
[342335347,1731745560900,-224.72958163,9.987e-05,2]
[342335348,1731745560921,-15903.40010857,9.988e-05,2]
[342335349,1731745560943,-15903.40010857,9.988e-05,2]
[342335350,1731745560969,-224.72958163,9.991e-05,2]
[342335351,1731745560991,-965.47963775,9.992e-05,2]
[342335352,1731745561013,-16016.83500606,9.996e-05,2]
[342335353,1731745561035,-593181.67995443,9.996e-05,2]
[342335354,1731745561062,-478670.57342624,9.997e-05,2]
[342335358,1731745692664,1060.61,8.219e-05,2]
[342335387,1731745831464,-1004.85,9.042e-05,2]
[342335388,1731745831474,-998.15884502,9.172e-05,2]
[342335389,1731745831580,-1.84115498,9.172e-05,2]
[342335390,1731745831591,-387.09,9.203e-05,2]
[342335391,1731745831601,-366.84,9.494e-05,2]
[342335392,1731745831610,-200.0,9.6e-05,2]
[342335393,1731745831619,-150.0,9.758e-05,2]
[342335394,1731745831628,-300.0,9.758e-05,2]
[342335395,1731745831638,-4398.8268756,9.759e-05,2]
[342335396,1731745831649,-16508.42604504,9.759e-05,2]
[342335397,1731745831678,-10360.04651751,9.759e-05,2]
[342335398,1731745831689,-91168.65826185,9.759e-05,2]
[342335399,1731745831699,-12498.2602,9.759e-05,2]
[342335400,1731745831708,-1010.51803814,9.759e-05,2]
[342335401,1731745831733,-3621.68876186,9.759e-05,2]
[342335402,1731745831742,-5487.79123814,9.759e-05,2]
[342335403,1731745831753,-2446.58266186,9.759e-05,2]
[342335404,1731745831762,-4248.91733814,9.843e-05,2]
[342335405,1731745831776,-27637.3545605,9.843e-05,2]
[342335406,1731745831788,-8008.51950183,9.843e-05,2]
[342335407,1731745831799,-37779.31642581,9.843e-05,2]
[342335408,1731745831824,-6838.48,9.843e-05,2]
[342335409,1731745831835,-3770.0,9.843e-05,2]
[342335410,1731745831847,-40456.53727372,9.843e-05,2]
[342335411,1731745831857,-150.0,9.85e-05,2]
[342335412,1731745831867,-150.0,9.85e-05,2]
[342335413,1731745831876,-158.49,9.85e-05,2]
[342335414,1731745831886,-184.21743784,9.858e-05,2]
[342335415,1731745831895,-500.0,9.858e-05,2]
[342335416,1731745831905,-150.0,9.86e-05,2]
[342335417,1731745831915,-150.0,9.86e-05,2]
[342335418,1731745831929,-362.16,9.86e-05,2]
[342335419,1731745831939,-150.0,9.86e-05,2]
[342335421,1731745831948,-150.0,9.86e-05,2]
[342335423,1731745831957,-1000.0,9.9e-05,2]
[342335425,1731745831967,-399.42687174,9.943e-05,2]
[342335427,1731745831976,-270.12314975,9.958e-05,2]
[342335429,1731745831986,-500.0,9.973e-05,2]
[342335431,1731745831995,-204.72552742,9.973e-05,2]
[342335434,1731745832004,-150.0,9.98e-05,2]
[342335436,1731745832014,-150.0,9.98e-05,2]
[342335438,1731745832023,-432.89,9.98e-05,2]
[342335440,1731745832032,-968.32,9.98e-05,2]
[342335442,1731745832041,-150.0,9.98e-05,2]
[342335444,1731745832051,-963.94,9.98e-05,2]
[342335446,1731745832060,-407.88,9.98e-05,2]
[342335448,1731745832069,-150.0,9.98e-05,2]
[342335450,1731745832078,-2126.34176437,9.997e-05,2]
[342335452,1731745832089,-328.44728001,9.997e-05,2]
[342335459,1731745837502,-500.0,9.858e-05,2]
[342335460,1731745837511,-500.0,9.957e-05,2]
[342335461,1731745837521,-312.66,9.958e-05,2]
[342335462,1731745837530,-4918.53079209,9.997e-05,2]
[342335463,1731745837542,-548.302578,9.997e-05,2]
[342335464,1731745837553,-1547.61,9.997e-05,2]
[342335465,1731745837657,-13238.65066238,9.997e-05,2]
[342335466,1731745837675,-3815.7077,9.997e-05,2]
[342335467,1731745837838,-17170.04,9.997e-05,2]
[342335468,1731745837895,-4561.05944792,9.997e-05,2]
[342335469,1731745838008,-6079.36628899,9.997e-05,2]
[342335478,1731745839438,-3025.32621249,9.997e-05,2]
[342335479,1731745841736,-369.85178351,9.997e-05,2]
[342335480,1731745841747,-312.3160075,9.997e-05,2]
[342335481,1731745841822,-253.44497898,9.997e-05,2]
[342335482,1731745841833,-556.86577081,9.997e-05,2]
[342335483,1731745841843,-683.69089955,9.997e-05,2]
[342335484,1731745841856,-3235.05720002,9.997e-05,2]
[342335485,1731745841867,-384.644286,9.997e-05,2]
[342335506,1731745842818,-3000.0,9.997e-05,2]
[342335507,1731745842852,-3051.1094628,9.997e-05,2]
[342335508,1731745842863,-19477.38991202,9.997e-05,2]
[342335509,1731745842874,-18169.4,9.997e-05,2]
[342335510,1731745842892,-7657.95350075,9.997e-05,2]
[342335511,1731745842902,-10213.64649925,9.997e-05,2]
[342335513,1731745842923,-828.6711612,9.997e-05,2]
[342335514,1731745842943,-1603.45691161,9.997e-05,2]
[342335515,1731745842954,-481.33482114,9.997e-05,2]
[342335516,1731745842973,-627.59413878,9.997e-05,2]
[342335519,1731745843212,-2337.72239091,9.997e-05,2]
[342335520,1731745843223,-1968.40098272,9.997e-05,2]
[342335521,1731745843234,-20379.57710894,9.997e-05,2]
[342335522,1731745843243,-6591.88435948,9.998e-05,2]
[342335523,1731745843253,-965.47963775,9.998e-05,2]
[342335524,1731745843262,-158.82922353,9.999e-05,2]
[342335525,1731745843271,-5768.56987267,9.999e-05,2]
[342335526,1731745843280,-936.80747918,9.999e-05,2]
[342335527,1731745843291,-1305.0,0.0001,2]
[342335528,1731745843300,-188.19971532,0.0001,2]
[342335529,1731745843309,-3616.73563346,0.0001,2]
[342335530,1731745843318,-47994.2762822,0.0001,2]
[342335531,1731745843329,-2151.55353911,0.0001,2]
[342335532,1731745843340,-1023.02796118,0.0001,2]
[342335533,1731745843351,-419.63774487,0.0001,2]
[342335534,1731745843362,-2519.36597863,0.0001,2]
[342335537,1731745845437,-3185.0733,0.0001,2]
[342335538,1731745845449,-455.885,0.0001,2]
[342335539,1731745845498,-961.67,0.0001,2]
[342335540,1731745845668,-12954.43518019,0.0001,2]
[342335541,1731745845680,-3134.1267,0.0001,2]
[342335542,1731745845693,-5403.12719271,0.0001,2]
[342335543,1731745845725,-298.0128579,0.0001,2]
[342335544,1731745845737,-749.10438779,0.0001,2]
[342335545,1731745845786,-43764.20924662,0.0001,2]
[342335549,1731746124385,500.0,0.00025,60]
[342335553,1731746372991,2014.984641,8.178e-05,2]
[342335554,1731746429956,807.965359,8.219e-05,2]
[342335555,1731746429979,243.254641,8.219e-05,2]
[342335556,1731746585324,506.52,8.467e-05,2]
[342335558,1731746664755,300.0,8.466e-05,2]
[342335559,1731746721091,308.82,0.00025,60]
[342335560,1731746768738,308.82,0.00025,60]
[342335561,1731746778089,250.0,8.479e-05,2]
[342335562,1731746797588,250.0,8.486e-05,2]
[342335563,1731746801706,150.959,0.0002385,60]
[342335564,1731746832924,1045.95,8.499e-05,2]
[342335565,1731746889007,686.479995,8.178e-05,2]
[342335567,1731746941713,800.0,0.00025,60]
[342335568,1731746948132,-4105.95,8.511e-05,2]
[342335569,1731746948152,-4867.63943098,8.531e-05,2]
[342335570,1731746948412,-610.45082718,8.531e-05,2]
[342335571,1731746948434,-318.08,8.531e-05,2]
[342335572,1731746948454,-1000.0,8.579e-05,2]
[342335573,1731746948475,-23900.0,8.604e-05,2]
[342335574,1731746948495,-1118.31369052,8.668e-05,2]
[342335575,1731746948521,-734.10630948,8.668e-05,2]
[342335576,1731746948540,-351.21,8.944e-05,2]
[342335577,1731746948560,-150.21,8.944e-05,2]
[342335578,1731746948581,-150.21,8.949e-05,2]
[342335579,1731746948603,-763.61,8.95e-05,2]
[342335580,1731746948625,-150.21,8.955e-05,2]
[342335581,1731746948648,-150.21,8.96e-05,2]
[342335582,1731746948671,-150.21,8.966e-05,2]
[342335583,1731746948692,-150.21,8.972e-05,2]
[342335584,1731746948715,-150.21,8.977e-05,2]
[342335585,1731746948737,-150.21,8.983e-05,2]
[342335586,1731746948758,-150.21,8.988e-05,2]
[342335587,1731746953524,762.38,8.95e-05,2]
[342335588,1731746955782,3609.224,8.504e-05,2]
[342335593,1731746970174,156.49,8.833e-05,2]
[342335594,1731746970394,156.49,8.838e-05,2]
[342335595,1731746970795,156.49,8.843e-05,2]
[342335596,1731746970977,156.49,8.848e-05,2]
[342335597,1731746971268,156.49,8.853e-05,2]
[342335598,1731746971466,156.49,8.858e-05,2]
[342335599,1731746971668,156.49,8.863e-05,2]
[342335600,1731746971884,156.49,8.868e-05,2]
[342335601,1731746972102,156.49,8.873e-05,2]
[342335602,1731746972303,156.49,8.878e-05,2]
[342335607,1731747031879,-432.89,9.041e-05,2]
[342335608,1731747031889,-432.89,9.041e-05,2]
[342335609,1731747031899,-763.61,9.041e-05,2]
[342335610,1731747031909,-200.01206643,9.141e-05,2]
[342335611,1731747031935,-1326.28793357,9.141e-05,2]
[342335612,1731747031945,-432.89,9.141e-05,2]
[342335613,1731747031955,-150.0,9.144e-05,2]
[342335614,1731747031965,-57.99406643,9.145e-05,2]
[342335615,1731747031977,-36373.52804423,9.145e-05,2]
[342335616,1731747031989,-19949.30788934,9.145e-05,2]
[342335617,1731747031999,-432.38,9.178e-05,2]
[342335618,1731747032008,-150.0,9.178e-05,2]
[342335619,1731747032018,-220.49,9.178e-05,2]
[342335620,1731747032027,-968.32,9.178e-05,2]
[342335621,1731747032036,-362.43,9.178e-05,2]
[342335622,1731747032045,-150.0,9.178e-05,2]
[342335623,1731747032055,-150.0,9.178e-05,2]
[342335624,1731747032064,-300.0,9.178e-05,2]
[342335625,1731747032075,-968.32,9.178e-05,2]
[342335626,1731747032084,-150.0,9.178e-05,2]
[342335627,1731747032093,-150.0,9.178e-05,2]
[342335628,1731747032102,-300.39,9.278e-05,2]
[342335629,1731747032112,-300.0,9.278e-05,2]
[342335630,1731747032122,-150.0,9.278e-05,2]
[342335631,1731747032131,-150.0,9.278e-05,2]
[342335632,1731747032140,-968.32,9.278e-05,2]
[342335633,1731747032150,-362.36,9.278e-05,2]
[342335634,1731747032159,-167.41,9.361e-05,2]
[342335635,1731747032171,-360.42,9.378e-05,2]
[342335636,1731747032181,-362.43,9.378e-05,2]
[342335637,1731747032190,-362.43,9.378e-05,2]
[342335638,1731747032199,-362.43,9.378e-05,2]
[342335639,1731747032209,-362.43,9.378e-05,2]
[342335640,1731747032218,-362.43,9.378e-05,2]
[342335641,1731747032228,-362.43,9.378e-05,2]
[342335642,1731747032238,-362.43,9.38e-05,2]
[342335643,1731747032247,-150.0,9.38e-05,2]
[342335644,1731747032256,-361.37,9.38e-05,2]
[342335645,1731747032265,-164.77,9.42e-05,2]
[342335646,1731747032274,-432.89,9.42e-05,2]
[342335647,1731747032283,-432.89,9.42e-05,2]
[342335648,1731747032292,-1526.3,9.441e-05,2]
[342335649,1731747032301,-506.52,9.526e-05,2]
[342335650,1731747032311,-432.89,9.541e-05,2]
[342335651,1731747032321,-362.43,9.578e-05,2]
[342335652,1731747032330,-150.0,9.578e-05,2]
[342335653,1731747032340,-150.0,9.578e-05,2]
[342335654,1731747032350,-154.28,9.578e-05,2]
[342335655,1731747032360,-150.0,9.578e-05,2]
[342335656,1731747032370,-150.0,9.578e-05,2]
[342335657,1731747032379,-1000.0,9.651e-05,2]
[342335658,1731747032389,-362.43,9.678e-05,2]
[342335659,1731747032399,-362.43,9.678e-05,2]
[342335660,1731747032408,-150.0,9.678e-05,2]
[342335661,1731747032419,-968.32,9.678e-05,2]
[342335662,1731747032429,-150.0,9.678e-05,2]
[342335663,1731747032438,-150.0,9.678e-05,2]
[342335664,1731747032447,-150.0,9.678e-05,2]
[342335665,1731747032456,-150.0,9.678e-05,2]
[342335666,1731747032467,-150.0,9.678e-05,2]
[342335667,1731747032476,-150.0,9.678e-05,2]
[342335668,1731747032485,-150.0,9.678e-05,2]
[342335669,1731747032494,-150.0,9.678e-05,2]
[342335670,1731747032503,-150.0,9.678e-05,2]
[342335671,1731747032512,-150.0,9.678e-05,2]
[342335672,1731747032521,-150.0,9.678e-05,2]
[342335673,1731747032530,-150.0,9.726e-05,2]
[342335674,1731747032540,-724.64,9.726e-05,2]
[342335675,1731747032549,-13524.342,9.743e-05,2]
[342335676,1731747032558,-500.0,9.743e-05,2]
[342335677,1731747032567,-3073.0795,9.743e-05,2]
[342335678,1731747032576,-3178.6936,9.743e-05,2]
[342335679,1731747032586,-500.0,9.842e-05,2]
[342335680,1731747032595,-500.0,9.842e-05,2]
[342335681,1731747032605,-282.65120557,9.842e-05,2]
[342335682,1731747032615,-1000.0,9.896e-05,2]
[342335683,1731747032624,-1000.0,9.899e-05,2]
[342335684,1731747032633,-2938.68883438,9.9e-05,2]
[342335693,1731747037806,-9919.65126334,9.9e-05,2]
[342335694,1731747037862,-1761.63926197,9.9e-05,2]
[342335695,1731747038002,-14263.24134031,9.9e-05,2]
[342335696,1731747038012,-1967.172,9.9e-05,2]
[342335697,1731747038021,-3901.9772,9.9e-05,2]
[342335698,1731747038032,-826.4626,9.9e-05,2]
[342335699,1731747038042,-19503.6266,9.9e-05,2]
[342335700,1731747038056,-2330.9528,9.9e-05,2]
[342335701,1731747038065,-496.45914429,9.973e-05,2]
[342335702,1731747038075,-500.0,9.973e-05,2]
[342335703,1731747038084,-521.505,9.98e-05,2]
[342335704,1731747038094,-500.0,9.995e-05,2]
[342335705,1731747038103,-500.0,9.995e-05,2]
[342335706,1731747038113,-500.0,9.995e-05,2]
[342335707,1731747038123,-500.56039619,9.995e-05,2]
[342335708,1731747038132,-500.0,9.995e-05,2]
[342335709,1731747038141,-497.74000273,9.995e-05,2]
[342335710,1731747038151,-501.27687495,9.995e-05,2]
[342335711,1731747038160,-500.0,9.995e-05,2]
[342335712,1731747038172,-615.48986603,9.995e-05,2]
[342335713,1731747038181,-501.5381772,9.995e-05,2]
[342335714,1731747038190,-500.0,9.995e-05,2]
[342335715,1731747038200,-500.0,9.995e-05,2]
[342335716,1731747038208,-161.70966893,9.995e-05,2]
[342335717,1731747038218,-500.75208042,9.995e-05,2]
[342335718,1731747038228,-2776.46989984,9.999e-05,2]
[342335719,1731747038237,-500.0,9.999e-05,2]
[342335720,1731747038247,-500.0,9.999e-05,2]
[342335722,1731747038257,-549.86758171,9.999e-05,2]
[342335723,1731747038266,-500.0,9.999e-05,2]
[342335724,1731747038275,-227.80124204,9.999e-05,2]
[342335725,1731747038286,-500.0,9.999e-05,2]
[342335726,1731747038297,-500.0,9.999e-05,2]
[342335727,1731747038307,-500.0,9.999e-05,2]
[342335728,1731747038318,-500.0,9.999e-05,2]
[342335729,1731747038329,-500.0,9.999e-05,2]
[342335730,1731747038339,-500.0,9.999e-05,2]
[342335731,1731747038349,-500.0,9.999e-05,2]
[342335732,1731747038358,-500.0,9.999e-05,2]
[342335733,1731747038367,-500.0,9.999e-05,2]
[342335734,1731747038377,-500.0,9.999e-05,2]
[342335735,1731747038386,-500.0,9.999e-05,2]
[342335736,1731747038395,-500.0,9.999e-05,2]
[342335737,1731747038406,-223.39499265,9.999e-05,2]
[342335739,1731747038415,-396.34121654,9.999e-05,2]
[342335740,1731747038431,-499.65999199,9.999e-05,2]
[342335741,1731747038440,-500.0,9.999e-05,2]
[342335742,1731747038450,-500.0,9.999e-05,2]
[342335743,1731747038460,-462.48321455,9.999e-05,2]
[342335744,1731747038470,-528.00845534,9.999e-05,2]
[342335745,1731747038480,-500.0,9.999e-05,2]
[342335746,1731747038490,-594.68903446,9.999e-05,2]
[342335747,1731747038499,-536.76693421,9.999e-05,2]
[342335748,1731747038509,-580.62614466,9.999e-05,2]
[342335749,1731747038519,-500.0,9.999e-05,2]
[342335750,1731747038529,-500.0,9.999e-05,2]
[342335751,1731747038539,-216.16437878,9.999e-05,2]
[342335752,1731747038548,-500.0,9.999e-05,2]
[342335753,1731747038558,-500.0,9.999e-05,2]
[342335754,1731747038567,-544.95573871,9.999e-05,2]
[342335755,1731747038577,-1000.0,9.999e-05,2]
[342335756,1731747038586,-1000.0,9.999e-05,2]
[342335757,1731747038596,-500.0,9.999e-05,2]
[342335758,1731747038605,-198.04937625,9.999e-05,2]
[342335759,1731747038615,-402.99890742,9.999e-05,2]
[342335760,1731747038625,-512.59595393,9.999e-05,2]
[342335761,1731747038634,-625.5757018,9.999e-05,2]
[342335762,1731747038644,-557.70705819,9.999e-05,2]
[342335763,1731747038655,-594.35486101,9.999e-05,2]
[342335764,1731747038669,-500.0,9.999e-05,2]
[342335765,1731747038679,-534.98396365,9.999e-05,2]
[342335766,1731747038689,-500.0,9.999e-05,2]